Cogmind - Beta 14 @@@ ROGUE MODE // 2025.04.29 @ 20:20:14 Player: DuckBoy Result: Destroyed by D-53 Grenadier with Mini Grenade Launcher Performance ------------- Evolutions (0) 0 Regions Visited (3) 600 Robots Destroyed (38) 190 Value Destroyed (882) 882 Prototype IDs (0) 0 Alien Tech Used (0) 0 Bonus (0) 0 TOTAL SCORE: 1672 Bonus ------- None Cogmind --------- Core Integrity 0/250 Matter 111/300 Energy 250/250 System Corruption 0% Temperature Cool (45) Movement Rolling (110) Location -8/Recycling Parts ------- > --- POWER (1) -------- Ion Engine > --- PROPULSION (2) --- Subdweller Monowheel Subdweller Monowheel > --- UTILITY (2) ------ Subdweller Optics > --- WEAPON (2) ------- Ion Cannon Subdweller Shrapnel Launcher > --- INVENTORY (5) ---- Spiked Treads Large Storage Unit Cobbler Unit Subdweller Machine Gun Peak State ------------ > --- POWER ------------ Light Nuclear Core > --- PROPULSION ------- Light Treads Light Treads > --- UTILITY ---------- Scrap Shield > --- WEAPON ----------- Heavy EM Pulse Gun Heavy EM Pulse Gun > --- INVENTORY -------- Ion Engine Large Storage Unit Medium Laser Assault Rifle [Rating: 13] Favorites ----------- Power Light Nuclear Core Engine Ion Engine Power Core Light Nuclear Core Propulsion Light Treads Treads Light Treads Wheel Subdweller Monowheel Utility Scrap Shield Device Subdweller Optics Storage Large Storage Unit Processor Visual Processing Unit Protection Scrap Shield Weapon Heavy EM Pulse Gun Energy Gun Heavy EM Pulse Gun Energy Cannon Ion Cannon Ballistic Gun Assault Rifle Ballistic Cannon Battle Cannon Launcher Grenade Launcher Build | -11 -10 -10 -8 ------- Run | Yrd Mat Sub Rec Slots Evolved . | . . . . Power . | . . . . Propulsion . | . . . . Utility . | . . . . Weapon . | . . . . Parts Attached 44 | 6 6 31 1 Power 3 | 1 1 1 . Engine 2 | 1 . 1 . Core 1 | . 1 . . Reactor . | . . . . Propulsion 10 | 2 1 7 . Treads 4 | 2 1 1 . Leg . | . . . . Wheel 6 | . . 6 . Hover . | . . . . Flight . | . . . . Utility 7 | 1 3 3 . Device 1 | . . 1 . Storage 3 | 1 2 . . Processor 1 | . 1 . . Hackware . | . . . . Protection 2 | . . 2 . Artifact . | . . . . Weapon 24 | 2 1 20 1 Energy Gun 12 | 1 . 11 . Energy Cannon 1 | . . . 1 Ballistic Gun 2 | 1 1 . . Ballistic Cannon 1 | . . 1 . Launcher 8 | . . 8 . Special Weapon . | . . . . Impact Weapon . | . . . . Slashing Weapon . | . . . . Piercing Weapon . | . . . . Special Melee Weapon . | . . . . Unidentified Prototypes . | . . . . Parts Lost 8 | . 1 7 . Power . | . . . . Propulsion 3 | . 1 2 . Utility 1 | . . 1 . Weapon 4 | . . 4 . Highest Loss Streak 3 | . 1 3 . To Critical Strikes . | . . . . Average Slot Usage (%) 87 | . 98 82 85 Engine 6 | . 2 8 14 Core 7 | . 11 5 . Treads 19 | . 27 16 . Wheel 8 | . . 11 28 Storage 4 | . 14 . . Processor 3 | . 12 . . Protection 8 | . . 12 . Energy Gun 17 | . 14 19 . Ballistic Gun 4 | . 13 . . Launcher 4 | . . 6 14 Peak Build Rating 13 | 6 11 13 12 Average Rating 11 | 3 10 11 11 On Entrance 7 | . 6 11 11 Naked Turns . | . . . . Heaviest Build 34 | 14 29 34 21 Greatest Support 40 | 40 40 40 40 Greatest Overweight (x) 3 | 3 . 1 . Average Overweight (x) . | . . . . Largest Inventory Capacity 15 | 8 15 15 5 Average Capacity 7 | 7 14 5 5 Most Carried 12 | 4 12 12 5 Average Carried 5 | 2 7 4 5 Final Capacity 15 | 8 15 5 5 Final Carried 12 | 2 12 5 5 Class Distribution -------------------- 80% | Mutant 19% | Subdweller-Mutant Dominant Class ---------------- Mutant | -10/Materials Mutant | -10/Subcaves Mutant | -8/Recycling Resources | -11 -10 -10 -8 ----------- Run | Yrd Mat Sub Rec Matter Collected 1191 | 260 195 652 84 Remotely . | . . . . Salvage Created 904 | . 484 336 84 Parts 62 | . 34 26 2 Haulers Intercepted 2 | . 2 . . Recyclers Shooed 1 | . . . 1 Parts Field Recycled . | . . . . Retrieved Matter . | . . . . Parts Self-Destructed 9 | . . 9 . Prevented . | . . . . Kills | -11 -10 -10 -8 ------- Run | Yrd Mat Sub Rec Combat Hostiles Destroyed 30 | . 11 19 . Guns 16 | . 11 5 . AOE 13 | . . 13 . Classes Destroyed 9 | . 5 3 1 Worker 1 | . 1 . . Hauler 2 | . 2 . . Recycler 1 | . . . 1 Turret 1 | . . 1 . Watcher 3 | . 3 . . Swarmer 13 | . 6 7 . Grunt 5 | . 5 . . Cobbler 1 | . . 1 . Subdweller 12 | . . 12 . Best Kill Streak 4 | . 4 4 1 Combat Bots Only 4 | . 4 4 . Max Kills in Single Turn 2 | . 1 2 1 Gunslinging . | . . . . Exploded 2 | . . 2 . Melee . | . . . . Uniques/NPCs Destroyed . | . . . . Combat | -11 -10 -10 -8 -------- Run | Yrd Mat Sub Rec Hostile Shots Fired 147 | . 53 90 4 Missed 42 | . 11 31 . Damage Taken 2098 | . 396 1577 125 Core 255 | . 66 132 57 Absorbed by Shields . | . . . . Regen/Repaired (Parts) 40 | . 40 . . Core Remaining (%) 100 | 100 . . . Volleys Fired 137 | . 45 89 3 Largest 2 | . 2 2 2 Hottest 100 | . 70 90 100 Shots Fired 208 | . 88 116 4 Gun 164 | . 88 76 . Cannon 3 | . . . 3 Launcher 41 | . . 40 1 Special . | . . . . Kinetic 68 | . 45 22 1 Thermal 53 | . 43 7 3 Explosive 18 | . . 18 . Electromagnetic 69 | . . 69 . Robot Hit Streak 23 | . 7 23 2 Robot Miss Streak 5 | . 5 3 2 Penetration Max . | . . . . Secondary Targets 3 | . 2 1 . Max Gunslinging Chain 1 | . 1 1 . Shots Hit Robots 115 | . 52 61 2 Core Hits 69 | . 24 44 1 Critical Kills . | . . . . Critical Parts Destroyed . | . . . . Critical Strikes 4 | . 2 2 . Burn 2 | . 2 . . Corrupt 2 | . . 2 . Melee Attacks . | . . . . Impact . | . . . . Slashing . | . . . . Piercing . | . . . . Sneak Attacks . | . . . . Combat Hostiles . | . . . . Follow-up Attacks . | . . . . Damage Inflicted 3506 | . 683 2738 85 Guns 1364 | . 683 681 . Cannons 44 | . . . 44 Explosions 2098 | . . 2057 41 Melee . | . . . . Ramming . | . . . . Kinetic 1814 | . 342 1431 41 Thermal 448 | . 341 63 44 Explosive 563 | . . 563 . Electromagnetic 681 | . . 681 . Impact . | . . . . Slashing . | . . . . Piercing . | . . . . Highest Corruption . | . . . . Average Corruption . | . . . . Corruption Purged . | . . . . Corruption Blocked . | . . . . Overload Shots . | . . . . Overflow Damage 41 | . . 41 . Projectiles . | . . . . Explosions 41 | . . 41 . Melee . | . . . . Knockbacks . | . . . . Impact . | . . . . Kinetic . | . . . . Secondary . | . . . . Self-Inflicted Damage 114 | . . 114 . Shots 4 | . . 4 . Rammed . | . . . . Targets Rammed . | . . . . Kicked . | . . . . Crushed . | . . . . Highest Temperature 289 | . 145 289 48 Average Temperature 50 | . 43 186 28 Received Heat Transfer 726 | . 126 600 . Siege Activations . | . . . . Robots Corrupted 1 | . . 1 . Combat Hostiles 1 | . . 1 . Parts Fried 5 | . . 5 . Impact Corruptions . | . . . . Robots Melted . | . . . . Combat Hostiles . | . . . . Parts Melted . | . . . . Heat Transferred 1271 | . 1147 50 74 Parts Sabotaged . | . . . . Parts Stolen . | . . . . Parts Stripped . | . . . . Power Chain Reactions 1 | . . 1 . Alert | -11 -10 -10 -8 ------- Run | Yrd Mat Sub Rec Peak Influence 161 | . 161 . 84 Initial 63 | . . . 63 Average 62 | . 65 . 64 Maximum Alert Level . | . . . . Low Security (%) 100 | 100 100 . 100 Level 1 . | . . . . Level 2 . | . . . . Level 3 . | . . . . Level 4 . | . . . . Level 5 . | . . . . High Security . | . . . . Max Security . | . . . . Squads Dispatched 1 | . 1 . . Investigation . | . . . . Extermination . | . . . . Reinforcement 1 | . 1 . . Assault . | . . . . Garrison . | . . . . Intercept . | . . . . Searches Triggered . | . . . . Construction Impeded . | . . . . Haulers Reinforced . | . . . . Active Scanning Responses . | . . . . Cargo Convoy Interrupts . | . . . . Stealth | -11 -10 -10 -8 --------- Run | Yrd Mat Sub Rec Distress Signals 2 | . 1 . 1 Communications Jammed . | . . . . Distress Signals . | . . . . Times Spotted 55 | . 19 34 2 Peak Tracking Total 4 | . 4 4 2 Tactical Retreats 6 | . . 6 . Traps | -11 -10 -10 -8 ------- Run | Yrd Mat Sub Rec Traps Triggered 3 | . . 3 . Indirectly . | . . . . Trap Hack Attempts . | . . . . Triggered . | . . . . Disarmed . | . . . . Reprogrammed . | . . . . Reused . | . . . . Traps Extracted . | . . . . Installed . | . . . . Triggered . | . . . . Machines | -11 -10 -10 -8 ---------- Run | Yrd Mat Sub Rec Machines Disabled 2 | . . 2 . Max in Single Turn 1 | . . 1 . Machines Repaired . | . . . . Machines Dismantled . | . . . . Machines Sabotaged . | . . . . Overloaded Fab Kills . | . . . . Hacking | -11 -10 -10 -8 --------- Run | Yrd Mat Sub Rec Machines Accessed 13 | . 10 1 2 Terminals 8 | . 7 . 1 Fabricators . | . . . . Repair Stations 1 | . 1 . . Recycling Units 3 | . 2 . 1 Scanalyzers . | . . . . Garrison Access . | . . . . Total Hacks 39 | . 31 5 3 Successful 21 | . 14 5 2 Failed 18 | . 17 . 1 Catastrophic 1 | . . . 1 Database Lockouts . | . . . . Manual 18 | . 18 . . Terminals 26 | . 25 . 1 Fabricators . | . . . . Repair Stations 3 | . 3 . . Recycling Units 5 | . 3 . 2 Scanalyzers . | . . . . Garrison Access . | . . . . Terminal Hacks 12 | . 7 5 . Record 5 | . . 5 . Robot Analysis 1 | . 1 . . Terminal Index 1 | . 1 . . Alert Level 1 | . 1 . . Locate Traps 1 | . 1 . . Patrol Status 1 | . 1 . . Transport Status 1 | . 1 . . Hauler Manifests 1 | . 1 . . Fabricator Hacks . | . . . . Repair Station Hacks 2 | . 2 . . Scan Component 1 | . 1 . . Repair 1 | . 1 . . Recycling Unit Hacks 4 | . 2 . 2 Retrieve Matter 1 | . . . 1 Retrieve Components 3 | . 2 . 1 Scanalyzer . | . . . . Garrison Access Hacks . | . . . . Unauthorized Hacks 3 | . 3 . . Terminals 3 | . 3 . . Assimilate 1 | . 1 . . Botnet 1 | . 1 . . Operators 1 | . 1 . . Fabricators . | . . . . Repair Stations . | . . . . Recycling Units . | . . . . Scanalyzers . | . . . . Garrison Access . | . . . . Data Cores Recovered . | . . . . Used . | . . . . Hacking Detections 9 | . 8 . 1 Full Trace Events . | . . . . Feedback Events . | . . . . Feedback Blocked . | . . . . Robot Schematics Acquired . | . . . . Robots Built . | . . . . Authchips . | . . . . Time . | . . . . Total Robot Build Rating . | . . . . Part Schematics Acquired . | . . . . Parts Built . | . . . . Authchips . | . . . . Time . | . . . . Total Part Build Rating . | . . . . Parts Repaired 1 | . 1 . . Time 26 | . 26 . . Parts Recycled . | . . . . Recycled Matter . | . . . . Retrieved Matter . | . . . . Retrieved Components 7 | . 4 . 3 Parts Scanalyzed . | . . . . Part Schematics Acquired . | . . . . Parts Damaged . | . . . . Bothacking | -11 -10 -10 -8 ------------ Run | Yrd Mat Sub Rec Used RIF Installer . | . . . . Robots Hacked . | . . . . Non-combat . | . . . . Combat . | . . . . Robot Hacks Applied . | . . . . Relay Couplers Released . | . . . . Fabnet Peak Effective % . | . . . . Robots Rewired . | . . . . Allies Hacked . | . . . . Hacks Repelled . | . . . . Allies | -11 -10 -10 -8 -------- Run | Yrd Mat Sub Rec Total Allies 1 | . 1 . . Largest Group 1 | . 1 1 . Highest-Rated Group 10 | . 10 10 . Highest-Rated Ally 10 | . 10 10 . Total Orders . | . . . . Ally Attacks . | . . . . Total Damage . | . . . . Kills . | . . . . Allies Corrupted . | . . . . Allies Melted . | . . . . Intel | -11 -10 -10 -8 ------- Run | Yrd Mat Sub Rec Robot Analysis Total 1 | . 1 . . Derelict Logs Recovered 1 | . . 1 . Drone Launches . | . . . . Drone Recoveries . | . . . . Exploration | -11 -10 -10 -8 ------------- Run | Yrd Mat Sub Rec Turns Passed 5613 | 84 1659 3793 77 Spaces Moved 3464 | 49 837 2518 60 Core 20 | 20 . . . Treads 2067 | 29 837 1201 . Legs . | . . . . Wheels 1377 | . . 1317 60 Hover . | . . . . Flight . | . . . . Fastest Speed 50 | 50 160 110 110 Average Speed 140 | 137 160 134 110 Slowest Speed 240 | 200 160 240 110 Overloaded Moves . | . . . . Propulsion Burnouts . | . . . . Robots Hopped . | . . . . Cave-ins Triggered . | . . . . Exploration Rate (%) 53 | 5 99 96 12 Regions Visited 3 Branch Regions 2 Pre-discovered Areas . | . . . . Known Exits Taken . | . . . . Unknown Exits Taken 3 | 1 1 1 . Scrap Searched 5 | . . 5 . Spaces Dug 55 | . . 55 . Terrain Destroyed 335 | . . 318 17 Melee . | . . . . Projectile . | . . . . AOE 335 | . . 318 17 Terrain Rammed . | . . . . Walls Destroyed . | . . . . Machines Disabled . | . . . . Actions | -11 -10 -10 -8 --------- Run | Yrd Mat Sub Rec Total 3988 | 64 1067 2790 67 Wait 290 | 6 170 112 2 Move 3461 | 48 836 2517 60 Hop . | . . . . Pick Up 22 | 4 9 9 . Fast Attach 18 | 4 3 10 1 Attach 7 | 2 1 4 . Detach . | . . . . Swap 19 | . 2 17 . Drop 17 | . 1 15 1 Fire 137 | . 45 89 3 Melee . | . . . . Ram . | . . . . Kick . | . . . . Crush . | . . . . Escape Stasis . | . . . . Rewire . | . . . . Trap . | . . . . Miscellaneous 17 | . . 17 . Route ------- -11/Scrapyard -10/Materials (discovered 4 exits: [*Mat x2] / [*Min] / *Sub) -10/Subcaves (discovered 3 exits: [*Mat x2] / *Rec) -8/Recycling History --------- Turn | Location | Event 21 | -11/Scrapyard | Discovered new exit (range 15) 85 | -11/Scrapyard | Entered Materials 155 | -10/Materials | Discovered new exit (range 10) 248 | -10/Materials | Discovered new exit (range 9) 302 | -10/Materials | Build established: Mutant 425 | -10/Materials | Discovered new exit (range 12) 788 | -10/Materials | Repaired Assault Rifle 1718 | -10/Materials | Discovered new exit (range 9) 1744 | -10/Materials | Entered Subcaves 1744 | -10/Subcaves | Accompanied by 1 ally 1748 | -10/Subcaves | Ambushed by Subdwellers from Twisted Machinery 1748 | -10/Subcaves | Discovered new exit (range 12) 1752 | -10/Subcaves | Ambushed by Subdweller buried in earth 1888 | -10/Subcaves | Learned Materials security intel 2176 | -10/Subcaves | Visited Clippyterm 2181 | -10/Subcaves | Learned Factory stockpile data 2181 | -10/Subcaves | Learned Factory garrison access intel 3350 | -10/Subcaves | A swath of the cavern ceiling suddenly collapsed 3714 | -10/Subcaves | Ambushed by Subdweller buried in earth 3941 | -10/Subcaves | Ambushed by Subdweller buried in earth 3956 | -10/Subcaves | Discovered new exit (range 12) 4308 | -10/Subcaves | Shifting Twisted Machinery released Sub. Optics 4317 | -10/Subcaves | Shifting Twisted Machinery released Sub. Laser 4320 | -10/Subcaves | Build established: Subdweller-Mutant 5002 | -10/Subcaves | Disturbed a concealed Subdweller 5101 | -10/Subcaves | Core integrity fell below 50% 5163 | -10/Subcaves | Lost 3 parts (1n1u1w) 5335 | -10/Subcaves | Ambushed by Subdweller buried in earth 5337 | -10/Subcaves | Discovered new exit (range 12) 5435 | -10/Subcaves | Build established: Mutant 5537 | -10/Subcaves | Entered Recycling 5613 | -8/Recycling | Core integrity fell below 20% 5614 | -8/Recycling | Destroyed by D-53 Grenadier with Mini Grenade Launcher Last Messages --------------- 05496_ Acquired Sub. Monowheel. 05501_ Acquired Sub. Optics. 05515_ Acquired 5 matter. 05520_ Acquired 20 matter. LOCATION=UNKNOWN GOAL=ESCAPE 05556_ Connecting with Terminal... 05556_ Current location identified: Recycling 05563_ Connecting with Recycling Unit... >>Retrieve(Components) Retrieving 3 components... Actuator Array Ion Cannon Hpw. Tractor Beam 05592_ Dropped Battle Cannon. 05593_ Acquired Ion Cannon. 05601_ R-06 Scavenger sends out distress signal. 05602_ R-06 Scavenger destroyed. 05606_ Acquired 84 matter. 05611_ U-05 Engineer destroyed. Map ----- +----------------------------------------------------+ | ?????????????????????????????????????????????????? | | ?????????????????????????????????????????????????? | | ?????????????????????????????????????????????????? | | ?????????????????????????????????????????????????? | | ?????????????????????????????????????????????????? | | ?????????????????????????????????????????????????? | | ?????????????????????????????????????????????????? | | ?????????????????????????????????????????????????? | | ?????????????????????????????????????????????????? | | ?????????????????????????????????????????????????? | | ?????????????????????######??????????????????????? | | ?????????????????????# #??????????????????????? | | ?????????????????????# ""#??????????????????????? | | ?????????????????????# Y"#??????????????????????? | | ?????????????????????#! ""#??????????????????????? | | ?????????????????????# ! #??????????????????????? | | ?????????????????????#] ###????????????????????? | | ?????????????????????# ""######???????????????? | | ?????????#???????????# ""## #??#######??????? | | ?????????# ?????????# T"## #? ! #??????? | | ?????????# ! %??????# ! ""## #? #??????? | | ?????????# t ????# ""## # %#??????? | | ?????????#i u Yd* ### # # %#??????? | | ?????????#au k; + ] !#??????? | | ??????########+#;;;;; # # #??????? | | ???? d @ * #/ ! #??????? | | ???? ! = #? #??????? | | ???? | +? ! #??????? | | ??????#########;;;;;;; # ###??#######??????? | | ??????????????####### # #?????????????????? | | ????????????????????# # #?????????????????? | | ????????????????????# # #?????????????????? | | ????????????????????+ # #?????????????????? | | ????????????????????# # #?????????????????? | | ????????????????????# # #?????????????????? | | ????????????????????+ # #?????????????????? | | ????????????????????# # ?????????????????? | | ????????????????????# ###?????????????????? | | ????????????????????######r###???????????????????? | | ??????????????????????????##?????????????????????? | | ?????????????????????????????????????????????????? | | ?????????????????????????????????????????????????? | | ?????????????????????????????????????????????????? | | ?????????????????????????????????????????????????? | | ?????????????????????????????????????????????????? | | ?????????????????????????????????????????????????? | | ?????????????????????????????????????????????????? | | ?????????????????????????????????????????????????? | | ?????????????????????????????????????????????????? | | ?????????????????????????????????????????????????? | +----------------------------------------------------+ Best States ------------- Heat Dissipation 25 Energy Generation 14 Energy Capacity 250 Matter Stores 300 Matter Capacity 300 Sight Range 21 Terrain Scan Density 10 Armor Coverage 800 Evasion (%) 50 Recoil Reduction 2 Item Schematics ----------------- None Robot Schematics ------------------ None Fabricated ------------ Nothing Alien Tech Used ----------------- None Achievements -------------- None Challenges ------------ None Game ------ Seed ColdThrusterWarhead Manual? 0 Play Time 00:37:08 Cumulative 459.2 hours Start 2025.04.29 @ 19:41:04 End 2025.04.29 @ 20:20:14 Sessions 1 Manual Loads 0 Difficulty Rogue Special Mode None Game No. 294 Rogue 291 Adventurer 3 Explorer 0 Win Type - Total 8 Types 7/0/1/0/0/0/0/0/0 Lore% 64 Gallery% 74 Achievement% 67 Wizard Run 0 Options --------- Layout 0 ASCII 0 Keyboard 0 Movement Numpad Keybinds 0 Fullscreen 1 Font 18/SmallcapsGlow Map View 76x50 Zoom Use 0% Tactical HUD 1 Map Filters NONE Filters NONE Steam 1 RUN: e5bdcbb9-d9c8-4553-942e-a47e0cfb8a1d